Cogmind - Beta 9.1 --- EXPLORER MODE // 2019.10.30 @ 17:10:33 Player: HexDSL Result: Destroyed by Y-45 Defender with Heavy Assault Rifle Performance ------------- Evolutions (1) 500 Regions Visited (3) 600 Robots Destroyed (14) 70 Value Destroyed (182) 182 Prototype IDs (0) 0 Alien Tech Used (0) 0 Bonus (0) 0 TOTAL SCORE: 1352 Bonus ------- None Cogmind --------- Core Integrity 0/400 Matter 288/300 Energy 99/100 System Corruption 1% Temperature Cool (9) Location -9/Materials Parts ------- Power (2) Propulsion (2) Utility (4) Medium Storage Unit Terrain Scan Processor Weapon Shielding Weapon (2) Inventory (8) Peak State ------------ Power Ion Engine Light Ion Engine Propulsion Light Treads Light Treads Utility Medium Storage Unit Terrain Scan Processor Weapon Shielding Weapon Assault Rifle Inventory (Empty) [Rating: 9] Favorites ----------- Power Ion Engine Engine Ion Engine Propulsion Light Treads Treads Light Treads Utility Weapon Shielding Storage Medium Storage Unit Processor Terrain Scan Processor Protection Weapon Shielding Weapon Assault Rifle Energy Gun Small Laser Ballistic Gun Assault Rifle Build | -11 -10 -10 -9 ------- Run | Scr Mat Min Mat Slots Evolved 3 | . 1 . 2 Power 1 | . 1 . . Propulsion . | . . . . Utility 2 | . . . 2 Weapon . | . . . . Parts Attached 11 | 7 . 1 3 Power 2 | 1 . 1 . Engine 2 | 1 . 1 . Core . | . . . . Reactor . | . . . . Propulsion 2 | 2 . . . Treads 2 | 2 . . . Leg . | . . . . Wheel . | . . . . Hover . | . . . . Flight . | . . . . Utility 4 | 2 . . 2 Device . | . . . . Storage 1 | 1 . . . Processor 1 | . . . 1 Hackware . | . . . . Protection 2 | 1 . . 1 Artifact . | . . . . Weapon 3 | 2 . . 1 Energy Gun 1 | 1 . . . Energy Cannon . | . . . . Ballistic Gun 2 | 1 . . 1 Ballistic Cannon . | . . . . Launcher . | . . . . Special Weapon . | . . . . Impact Weapon . | . . . . Slashing Weapon . | . . . . Piercing Weapon . | . . . . Special Melee Weapon . | . . . . Unidentified Prototypes . | . . . . Parts Lost 8 | . . . 8 Power 2 | . . . 2 Propulsion 2 | . . . 2 Utility 1 | . . . 1 Weapon 3 | . . . 3 Highest Loss Streak 5 | . . . 5 Average Slot Usage (%) 72 | . 87 87 54 Engine 10 | . 12 12 7 Treads 17 | . 25 25 8 Storage 11 | . 12 12 10 Processor 3 | . . . 7 Protection 12 | . 12 12 12 Energy Gun 7 | . 12 12 1 Ballistic Gun 9 | . 12 12 6 Naked Turns . | . . . . Heaviest Build 20 | 17 17 20 20 Greatest Support 40 | 40 40 40 40 Greatest Overweight (x) 5 | . . . 5 Average Overweight (x) . | . . . 2 Largest Inventory Capacity 8 | 8 8 8 8 Average Capacity 7 | 6 8 8 8 Most Carried 4 | 4 . 2 1 Average Carried . | . . . . Final Capacity 8 | 8 8 8 8 Final Carried 1 | . . 1 . Class Distribution -------------------- 100% | Mutant Dominant Class ---------------- Mutant | -10/Materials Mutant | -10/Mines Mutant | -9/Materials Resources | -11 -10 -10 -9 ----------- Run | Scr Mat Min Mat Matter Collected 410 | 181 . 159 70 Remotely . | . . . . Salvage Created 281 | . 34 58 189 Parts 13 | . 1 . 12 Haulers Intercepted . | . . . . Recyclers Shooed . | . . . . Parts Field Recycled . | . . . . Retrieved Matter . | . . . . Parts Self-Destructed . | . . . . Prevented . | . . . . Kills | -11 -10 -10 -9 ------- Run | Scr Mat Min Mat Combat Hostiles Destroyed 14 | . 1 6 7 Guns 14 | . 1 6 7 Classes Destroyed 3 | . 1 1 1 Swarmer 5 | . . . 5 Grunt 3 | . 1 . 2 Assembled 6 | . . 6 . Best Kill Streak 6 | . 1 3 6 Combat Bots Only 6 | . 1 3 6 Max Kills in Single Turn 1 | . 1 1 1 Gunslinging . | . . . . Exploded . | . . . . Melee . | . . . . Uniques/NPCs Destroyed . | . . . . Combat | -11 -10 -10 -9 -------- Run | Scr Mat Min Mat Damage Taken 1309 | . 60 335 914 Core 444 | . . 34 410 Absorbed by Shields . | . . . . Core Remaining (%) 93 | 100 . 86 . Volleys Fired 60 | . 2 18 40 Largest 2 | . 2 2 2 Hottest 60 | . 60 60 60 Shots Fired 83 | . 4 36 43 Gun 83 | . 4 36 43 Cannon . | . . . . Launcher . | . . . . Special . | . . . . Kinetic 61 | . 2 18 41 Thermal 22 | . 2 18 2 Explosive . | . . . . Electromagnetic . | . . . . Robot Hit Streak 20 | . 2 10 20 Robot Miss Streak 2 | . 1 1 2 Penetration Max . | . . . . Secondary Targets 2 | . . 2 . Max Gunslinging Chain 1 | . . 1 . Shots Hit Robots 71 | . 3 31 37 Core Hits 25 | . 2 12 11 Critical Hits 1 | . . 1 . Critical Kills . | . . . . Critical Parts Destroyed 1 | . . 1 . Melee Attacks . | . . . . Impact . | . . . . Slashing . | . . . . Piercing . | . . . . Sneak Attacks . | . . . . Combat Hostiles . | . . . . Follow-up Attacks . | . . . . Damage Inflicted 783 | . 36 353 394 Guns 748 | . 36 353 359 Cannons . | . . . . Explosions 34 | . . . 34 Melee . | . . . . Ramming 1 | . . . 1 Kinetic 534 | . 26 159 349 Thermal 214 | . 10 194 10 Explosive . | . . . . Electromagnetic 34 | . . . 34 Impact . | . . . . Slashing . | . . . . Piercing . | . . . . Highest Corruption 1 | . . . 1 Average Corruption 1 | . . . 1 Corruption Purged . | . . . . Overload Shots . | . . . . Overflow Damage . | . . . . Projectiles . | . . . . Explosions . | . . . . Melee . | . . . . Knockbacks . | . . . . Impact . | . . . . Kinetic . | . . . . Secondary . | . . . . Self-Inflicted Damage . | . . . . Shots . | . . . . Rammed 1 | . . . 1 Targets Rammed 1 | . . . 1 Kicked . | . . . . Crushed . | . . . . Highest Temperature 84 | . 9 84 18 Average Temperature 34 | . 9 44 5 Received Heat Transfer 631 | . 60 220 351 Siege Activations . | . . . . Robots Corrupted . | . . . . Combat Hostiles . | . . . . Parts Fried . | . . . . Impact Corruptions . | . . . . Robots Melted . | . . . . Combat Hostiles . | . . . . Parts Melted . | . . . . Heat Transferred 500 | . 25 450 25 Parts Sabotaged . | . . . . Parts Stolen . | . . . . Parts Stripped . | . . . . Power Chain Reactions . | . . . . Missiles Intercepted . | . . . . Alert | -11 -10 -10 -9 ------- Run | Scr Mat Min Mat Peak Influence 158 | . 20 5 158 Average Influence 38 | . 2 5 99 Maximum Alert Level . | . . . . Low Security (%) 100 | . . . . Level 1 . | . . . . Level 2 . | . . . . Level 3 . | . . . . Level 4 . | . . . . Level 5 . | . . . . High Security . | . . . . Max Security . | . . . . Squads Dispatched . | . . . . Investigation . | . . . . Extermination . | . . . . Reinforcement . | . . . . Assault . | . . . . Garrison . | . . . . Intercept . | . . . . Construction Impeded . | . . . . Haulers Reinforced . | . . . . Stealth | -11 -10 -10 -9 --------- Run | Scr Mat Min Mat Distress Signals 2 | . 1 . 1 Communications Jammed . | . . . . Distress Signals . | . . . . Times Spotted 21 | . 2 8 11 Peak Tracking Total 4 | . 3 3 4 Tactical Retreats 2 | . . 2 . Traps | -11 -10 -10 -9 ------- Run | Scr Mat Min Mat Traps Triggered . | . . . . Indirectly . | . . . . Trap Hack Attempts . | . . . . Triggered . | . . . . Disarmed . | . . . . Reprogrammed . | . . . . Reused . | . . . . Traps Extracted . | . . . . Installed . | . . . . Triggered . | . . . . Machines | -11 -10 -10 -9 ---------- Run | Scr Mat Min Mat Machines Disabled 3 | . . . 3 Max in Single Turn 3 | . . . 3 Machines Sabotaged . | . . . . Garrisons Compromised . | . . . . Overloaded Fab Kills . | . . . . Fab Network Shutdowns . | . . . . Hacking | -11 -10 -10 -9 --------- Run | Scr Mat Min Mat Machines Accessed . | . . . . Terminals . | . . . . Fabricators . | . . . . Repair Stations . | . . . . Recycling Units . | . . . . Scanalyzers . | . . . . Garrison Access . | . . . . Total Hacks . | . . . . Successful . | . . . . Failed . | . . . . Catastrophic . | . . . . Database Lockouts . | . . . . Manual . | . . . . Terminals . | . . . . Fabricators . | . . . . Repair Stations . | . . . . Recycling Units . | . . . . Scanalyzers . | . . . . Garrison Access . | . . . . Terminal Hacks . | . . . . Fabricator Hacks . | . . . . Repair Station Hacks . | . . . . Recycling Unit Hacks . | . . . . Scanalyzer . | . . . . Garrison Access Hacks . | . . . . Unauthorized Hacks . | . . . . Terminals . | . . . . Fabricators . | . . . . Repair Stations . | . . . . Recycling Units . | . . . . Scanalyzers . | . . . . Garrison Access . | . . . . Data Cores Recovered . | . . . . Used . | . . . . Hacking Detections . | . . . . Full Trace Events . | . . . . Feedback Events . | . . . . Feedback Blocked . | . . . . Robot Schematics Acquired . | . . . . Robots Built . | . . . . Matter . | . . . . Time . | . . . . Total Robot Build Rating . | . . . . Part Schematics Acquired . | . . . . Parts Built . | . . . . Matter . | . . . . Time . | . . . . Total Part Build Rating . | . . . . Parts Repaired . | . . . . Time . | . . . . Parts Recycled . | . . . . Recycled Matter . | . . . . Retrieved Matter . | . . . . Retrieved Components . | . . . . Parts Scanalyzed . | . . . . Part Schematics Acquired . | . . . . Parts Damaged . | . . . . Bothacking | -11 -10 -10 -9 ------------ Run | Scr Mat Min Mat Used RIF Installer . | . . . . Robots Hacked . | . . . . Non-combat . | . . . . Combat . | . . . . Robot Hacks Applied . | . . . . Relay Couplers Released . | . . . . Robots Rewired . | . . . . Allies Hacked . | . . . . Hacks Repelled . | . . . . Allies | -11 -10 -10 -9 -------- Run | Scr Mat Min Mat Total Allies . | . . . . Largest Group . | . . . . Highest-Rated Group . | . . . . Highest-Rated Ally . | . . . . Total Orders . | . . . . Ally Attacks . | . . . . Total Damage . | . . . . Kills . | . . . . Allies Corrupted . | . . . . Allies Melted . | . . . . Intel | -11 -10 -10 -9 ------- Run | Scr Mat Min Mat Robot Analysis Total . | . . . . Derelict Logs Recovered . | . . . . Drone Launches . | . . . . Drone Recoveries . | . . . . Exploration | -11 -10 -10 -9 ------------- Run | Scr Mat Min Mat Turns Passed 777 | 129 134 224 290 Spaces Moved 379 | 87 81 105 106 Core 86 | 21 . . 65 Treads 293 | 66 81 105 41 Legs . | . . . . Wheels . | . . . . Hover . | . . . . Flight . | . . . . Fastest Speed 50 | 50 160 160 150 Average Speed 163 | 133 160 160 192 Slowest Speed 300 | 160 160 160 300 Overloaded Moves . | . . . . Propulsion Burnouts . | . . . . Robots Hopped . | . . . . Cave-ins Triggered . | . . . . Exploration Rate (%) 15 | 5 14 28 15 Regions Visited 3 Branch Regions 1 Pre-discovered Areas . | . . . . Known Exits Taken 3 | 1 1 1 . Unknown Exits Taken . | . . . . Scrap Searched . | . . . . Spaces Dug . | . . . . Terrain Destroyed . | . . . . Melee . | . . . . Projectile . | . . . . AOE . | . . . . Actions | -11 -10 -10 -9 --------- Run | Scr Mat Min Mat Total 459 | 100 82 125 152 Wait . | . . . . Move 376 | 86 80 104 106 Hop . | . . . . Pick Up 11 | 7 . 2 2 Fast Attach . | . . . . Attach 11 | 7 . 1 3 Detach . | . . . . Swap . | . . . . Drop . | . . . . Fire 60 | . 2 18 40 Melee . | . . . . Ram 1 | . . . 1 Kick . | . . . . Crush . | . . . . Escape Stasis . | . . . . Rewire . | . . . . Trap . | . . . . Miscellaneous . | . . . . Route ------- -11/Scrapyard -10/Materials -10/Mines -9/Materials History --------- Turn | Location | Event 55 | -11/Scrapyard | Identified exit to Materials 55 | -11/Scrapyard | Discovered exit to Materials (range 15) 130 | -11/Scrapyard | Entered Materials 130 | -10/Materials | Evolved 1 slot: Power x1 222 | -10/Materials | Identified exit to Mines 222 | -10/Materials | Discovered exit to Mines (range 7) 264 | -10/Materials | Entered Mines 296 | -10/Mines | Assembled infested the area 302 | -10/Mines | Build established: Mutant 422 | -10/Mines | Identified exit to Materials 422 | -10/Mines | Discovered exit to Materials (range 13) 488 | -10/Mines | Entered Materials 488 | -9/Materials | Evolved 2 slots: Utility x2 640 | -9/Materials | Lost 5 parts (2p2n1w) 677 | -9/Materials | Core integrity fell below 50% 736 | -9/Materials | Core integrity fell below 20% 778 | -9/Materials | Destroyed by Y-45 Defender with Heavy Assault Rifle Last Messages --------------- R-06 Scavenger collects Lgt. Ion Engine. U-05 Engineer lays Concrete. S-10 Pest destroyed. R-06 Scavenger collects Terrain Scanner. R-06 Scavenger collects Terrain Scan Processor. U-05 Engineer lays Concrete. G-34 Mercenary destroyed. Lgt. Assault Rifle destroyed. Atomic Centrifuge disabled. U-05 Engineer lays Concrete. U-05 Engineer destroyed. K-01 Serf collects debris. Acquired Med. Armor Plating. K-01 Serf collects debris. U-05 Engineer builds a Door. K-01 Serf collects debris. Slammed into K-01 Serf. Destabilizing: System corrupted (+1). K-01 Serf collects debris. Med. Armor Plating destroyed. Map ----- +----------------------------------------------------+ | ?????????# % """" #####??????????? | | ?????????# """" #??????????????? | | ?????????# #??????????????? | | ?????????# #????#+#???????? | | ???####### #????# #????###? | | ???# ###### #?? # | | ???# # */ # | | ???# %+ == # | | ???# %% % ##/########? | | ???# """ %"% ##*= #? | | ???# """ ## """ #? | | ?? + """ " % ## """ #? | | ? # !%! # """ #? | | ? ?# [ / #? | | ???# *%= # "" #? | | ???#######+### =###### # """ #? | | ?????????????## #######+# """ #? | | ??????????????# # # #? | | ??????????????# # ##########? | | ??????????????# + #?????????? | | ??????????????# # #?????????? | | ??????????????# ############??????? | | ?????????????## ##[ Y "" #??????? | | ?????????????# # ""S #??????? | | ?????????????# # """ "" #??????? | | ?????????????# + """ @ #??????? | | ?????????????# # """ #??????? | | ?????????????# # """Y #??????? | | ?????????????## ## """ #??????? | | ??????????????# ## #??????? | | ??????????????# ############??????? | | ??????????????+ #?????????????????? | | ??????????????# #?????????????????? | | ??????????????#^ #?????????????????? | | ??????????????#^ ??????????????????? | | ??????????????# ??????????????????? | | ??????????????# ??????????????????? | | ??????????????# ??????????????????? | | ??????????????+ ??????????????????? | | ??????????????# ??????????????????? | | ??????????????? ??????????????????? | | ????????????????????????????????????? | | ????????????????????????????????????? | | ????????????????????????????????????? | | ????????????????????????????????????? | | ????????????????????????????????????? | | ????????????????????????????????????? | | ????????????????????????????????????? | | ????????????????????????????????????? | | ????????????????????????????????????? | +----------------------------------------------------+ Best States ------------- Heat Dissipation 28 Energy Generation 15 Energy Capacity 275 Matter Stores 300 Matter Capacity 300 Sight Range 16 Terrain Scan Density 85 Armor Coverage 225 Resistance: KI 35 Resistance: TH 35 Resistance: EX 35 Resistance: EM 35 Resistance: I 35 Resistance: S 35 Resistance: P 35 Weapon Shielding 33 Evasion (%) 50 Recoil Reduction 2 Item Schematics ----------------- None Robot Schematics ------------------ None Fabricated ------------ Nothing Alien Tech Used ----------------- None Achievements -------------- None Challenges ------------ None Game ------ Seed ProtonBiomechanicalCoupler Manual? 0 Play Time 00:10:06 Cumulative 5.4 hours Start 2019.10.30 @ 17:01:51 End 2019.10.30 @ 17:10:33 Sessions 1 Manual Loads 0 Difficulty Explorer Special Mode None Game No. 15 Rogue 15 Adventurer 0 Explorer 15 Win Type - Total 0 Types 0/0/0/0/0/0/0 Lore% 5 Gallery% 12 Achievement% 10 Wizard Run 0 Options --------- ASCII 0 Keyboard 1 Movement Vi Keybinds 0 Fullscreen 2 Font 18/SmallcapsGlow Map View 76x50 Tactical HUD 0 Map Filters NONE Filters NONE Steam 1 RUN: efc4eda3-9523-43f0-a7b9-aa1bf0b38bdf